bitfinex-derivatives/quotes_BTCF0:USTF0_20250503
["timestamp","ask_amount","ask_price","bid_price","bid_amount"]
[1746286327216,0.2073352,96438.0,96420.0,0.3608]
[1746286327408,0.6281352,96438.0,96420.0,0.4228]
[1746286327605,0.6281352,96438.0,96421.0,0.57694503]
[1746286327804,0.6281352,96438.0,96421.0,0.36957513]
[1746286328012,0.6924352,96438.0,96421.0,0.36957513]
[1746286328217,0.8104352,96438.0,96427.0,0.26838305]
[1746286328418,0.8104352,96438.0,96427.0,0.06102505]
[1746286328604,0.8114352,96438.0,96437.0,0.32077868]
[1746286328810,0.8114352,96438.0,96437.0,0.004]
[1746286329005,0.6031,96438.0,96436.0,0.52411688]
[1746286329210,0.8114352,96438.0,96437.0,0.006]
[1746286329411,0.8114352,96438.0,96437.0,0.2133374]
[1746286330518,0.8104352,96438.0,96437.0,0.2103374]
[1746286330718,0.8114352,96438.0,96437.0,0.003]
[1746286331113,0.2073374,96437.0,96436.0,0.1299247]
[1746286331316,0.2273374,96437.0,96436.0,0.3372642]
[1746286331510,0.2929374,96437.0,96436.0,0.3372642]
[1746286331817,0.2929374,96437.0,96436.0,0.3342642]
[1746286332217,0.4109374,96437.0,96436.0,0.3342642]
[1746286332620,0.4109374,96437.0,96436.0,0.3372642]
[1746286333119,0.3909374,96437.0,96436.0,0.3372642]
[1746286333320,0.3909374,96437.0,96436.0,0.2103395]
[1746286333517,0.3919374,96437.0,96436.0,0.2133395]
[1746286333706,0.4019374,96437.0,96436.0,0.006]
[1746286334216,0.1846,96437.0,96436.0,0.006]
[1746286334420,0.4019374,96437.0,96436.0,0.006]
[1746286335624,0.3919374,96437.0,96436.0,0.016]
[1746286336025,0.1846,96437.0,96436.0,0.2233395]
[1746286336318,0.0518209,96462.0,96452.0,0.2073051]
[1746286336510,0.00155589,96453.0,96452.0,0.6381051]
[1746286337118,0.00155589,96453.0,96452.0,0.6705051]
[1746286337724,0.03485589,96453.0,96452.0,0.7007051]
[1746286337914,0.03685589,96453.0,96452.0,0.7007051]
[1746286338311,0.24415889,96453.0,96452.0,0.7007051]
[1746286339023,0.24315889,96453.0,96452.0,0.7027051]
[1746286339620,0.03585589,96453.0,96452.0,0.7027051]
[1746286340022,0.03485589,96453.0,96452.0,0.7057051]
[1746286340520,0.03485589,96453.0,96452.0,0.7047051]
[1746286341536,0.03485589,96453.0,96452.0,0.7057051]
[1746286343634,0.03485589,96453.0,96452.0,0.7027051]
[1746286343824,0.03485589,96453.0,96452.0,0.7047051]
[1746286344025,0.0333,96453.0,96452.0,0.7047051]
[1746286344232,0.240603,96453.0,96452.0,0.7027051]
[1746286344433,0.0333,96453.0,96452.0,0.7047051]
[1746286344635,0.240603,96453.0,96452.0,0.7047051]
[1746286344836,0.240603,96453.0,96452.0,0.072]
[1746286345023,0.280603,96453.0,96452.0,0.004]
[1746286345229,0.398603,96453.0,96452.0,0.004]
[1746286345731,0.358603,96453.0,96452.0,0.004]
[1746286346133,0.358603,96453.0,96452.0,0.003]
[1746286346328,0.378603,96453.0,96452.0,0.003]
[1746286346732,0.358603,96453.0,96452.0,0.023]
[1746286346932,0.358603,96453.0,96452.0,0.003]
[1746286347233,0.368603,96453.0,96452.0,0.003]
[1746286347728,0.358603,96453.0,96452.0,0.023]
[1746286347929,0.358603,96453.0,96452.0,0.003]
[1746286348834,0.358603,96453.0,96452.0,0.023]
[1746286349725,0.358603,96453.0,96452.0,0.003]
[1746286349925,0.719403,96453.0,96452.0,0.003]
[1746286350434,0.719403,96453.0,96452.0,0.001]
[1746286351135,0.721403,96453.0,96452.0,0.01]
[1746286351832,0.2073202,96445.0,96444.0,0.2073212]
[1746286352031,0.2073202,96445.0,96444.0,0.2773212]
[1746286352628,0.2710202,96445.0,96444.0,0.2773212]
[1746286353534,0.2710202,96445.0,96444.0,0.2793212]
[1746286354228,0.2710202,96445.0,96444.0,0.2803212]
[1746286354728,0.2710202,96445.0,96444.0,0.2803223]
[1746286361343,0.13098321,96471.0,96457.0,0.2072944]
[1746286361641,0.2072819,96465.0,96464.0,0.2072772]
[1746286361842,0.0851193,96466.0,96462.0,0.2072825]
[1746286361843,0.2591066,96463.0,96462.0,0.2072825]
[1746286362040,0.2591066,96463.0,96462.0,0.3206825]
[1746286362244,0.2924066,96463.0,96462.0,0.3206825]
[1746286363846,0.2954066,96463.0,96462.0,0.3216825]
[1746286364846,0.3275066,96463.0,96462.0,0.3216825]
[1746286365146,0.3305066,96463.0,96462.0,0.3216825]
[1746286371450,0.3305066,96463.0,96462.0,0.6824825]
[1746286374351,0.3305066,96463.0,96462.0,0.4752]
[1746286387559,0.3305066,96463.0,96462.0,0.6824836]
[1746286397150,0.0381,96463.0,96462.0,0.6824836]
[1746286397354,0.006,96463.0,96462.0,0.6824836]
[1746286397555,0.2132815,96463.0,96462.0,0.6824836]
[1746286398164,0.2132815,96463.0,96462.0,0.8004836]
[1746286398462,0.2132815,96463.0,96462.0,0.76003097]
[1746286400262,0.2132815,96463.0,96462.0,0.8160836]
[1746286400761,0.006,96463.0,96462.0,0.8160836]
[1746286401262,0.039,96463.0,96462.0,0.8160836]
[1746286401462,0.2462815,96463.0,96462.0,0.8160836]
[1746286402163,0.2462815,96463.0,96462.0,0.8485836]
[1746286403559,0.039,96463.0,96462.0,0.8485836]
[1746286404065,0.2462815,96463.0,96462.0,0.8485836]
[1746286406366,0.039,96463.0,96462.0,0.8485836]
[1746286408466,0.0718,96463.0,96462.0,0.8485836]
[1746286411762,0.2790815,96463.0,96462.0,0.8485836]
[1746286412669,0.2790815,96463.0,96462.0,0.4877836]
[1746286412877,0.0718,96463.0,96462.0,0.4877836]
[1746286415780,0.2790815,96463.0,96462.0,0.4877836]
[1746286416278,0.2790815,96463.0,96462.0,0.3697836]
[1746286418876,0.0718,96463.0,96462.0,0.3697836]
[1746286422476,0.2790815,96463.0,96462.0,0.3697836]
[1746286424779,0.0718,96463.0,96462.0,0.3697836]
[1746286426670,0.0688,96463.0,96462.0,0.3697836]
[1746286426874,0.0688,96463.0,96462.0,0.3707836]
[1746286428473,0.0658,96463.0,96462.0,0.3707836]
[1746286440672,0.2730815,96463.0,96462.0,0.3707836]
[1746286440875,0.0658,96463.0,96462.0,0.3707836]
[1746286454093,0.0658,96463.0,96462.0,0.3382836]
[1746286454990,0.70551641,96478.0,96477.0,0.2072514]
[1746286455187,0.28641641,96478.0,96477.0,0.2672514]
[1746286456091,0.40441641,96478.0,96477.0,0.2672514]
[1746286456891,0.3252493,96478.0,96477.0,0.2672514]
[1746286457080,0.3262493,96478.0,96477.0,0.2672514]
[1746286457280,0.3262493,96478.0,96477.0,0.30375424]
[1746286457889,0.3272493,96478.0,96477.0,0.30375424]
[1746286458084,0.3882493,96478.0,96477.0,0.30375424]
[1746286458389,0.3882493,96478.0,96477.0,0.31149884]
[1746286461194,0.2702493,96478.0,96477.0,0.31149884]
[1746286462087,0.3882493,96478.0,96477.0,0.31149884]
[1746286464293,0.2702493,96478.0,96477.0,0.31149884]
[1746286468890,0.2702493,96478.0,96477.0,0.34279884]
[1746286469294,0.2692493,96478.0,96477.0,0.34279884]
[1746286469594,0.2702493,96478.0,96477.0,0.34279884]
[1746286488021,0.2692493,96478.0,96477.0,0.34279884]
[1746286489020,0.2682493,96478.0,96477.0,0.34379884]
[1746286489616,0.2682493,96478.0,96477.0,0.34279884]
[1746286490021,0.2682493,96478.0,96477.0,0.31149884]
[1746286490221,0.2682493,96478.0,96477.0,0.10424744]
[1746286490525,0.2682493,96478.0,96477.0,0.31149884]
[1746286491212,0.3862493,96478.0,96477.0,0.31149884]
[1746286492120,0.2682493,96478.0,96477.0,0.31149884]
[1746286493127,0.3862493,96478.0,96477.0,0.31149884]
[1746286494223,0.2682493,96478.0,96477.0,0.31149884]
[1746286499515,0.2682493,96478.0,96477.0,0.31249884]
[1746286502024,0.061,96478.0,96477.0,0.31249884]
[1746286502527,0.061,96478.0,96477.0,0.34299884]
[1746286503719,0.2682493,96478.0,96477.0,0.34299884]
[1746286504928,0.061,96478.0,96477.0,0.34299884]
[1746286506729,0.2682493,96478.0,96477.0,0.34299884]
[1746286509527,0.061,96478.0,96477.0,0.34299884]
[1746286512323,0.0308,96478.0,96477.0,0.34299884]
[1746286512528,0.0308,96478.0,96477.0,0.37369884]
[1746286519428,0.0308,96478.0,96477.0,0.34299884]
[1746286519629,0.0626,96478.0,96477.0,0.34299884]
[1746286519825,0.0958,96478.0,96477.0,0.34299884]
[1746286527233,0.0958,96478.0,96477.0,0.37549884]
[1746286529340,0.0015,96480.0,96479.0,0.2072471]
[1746286529529,0.0015,96480.0,96479.0,0.2972471]
[1746286530239,0.208745,96480.0,96479.0,0.2972471]
[1746286532326,0.208745,96480.0,96479.0,0.2982471]
[1746286534929,0.0015,96480.0,96479.0,0.2982471]
[1746286536537,0.0344,96480.0,96479.0,0.2982471]
[1746286539851,0.0344,96480.0,96479.0,0.5872471]
[1746286540055,0.0344,96480.0,96479.0,0.5882471]
[1746286540751,0.0344,96480.0,96479.0,0.5892471]
[1746286542651,0.0344,96480.0,96479.0,0.5882471]
[1746286543452,0.0344,96480.0,96479.0,0.5892471]
[1746286544257,0.0344,96480.0,96479.0,0.5882471]
[1746286546253,0.0344,96480.0,96479.0,0.5872471]
[1746286546758,0.0344,96480.0,96479.0,0.5882471]
[1746286547345,0.0344,96480.0,96479.0,0.5892471]
[1746286553057,0.001,96486.0,96485.0,0.2072342]
[1746286553265,0.001,96486.0,96485.0,0.6880342]
[1746286554157,0.002,96486.0,96485.0,0.6880342]
[1746286554359,0.002,96486.0,96485.0,0.7208342]
[1746286554556,0.002,96486.0,96485.0,0.7532342]
[1746286555756,0.003,96486.0,96485.0,0.7532342]
[1746286556059,0.002,96486.0,96485.0,0.7532342]
[1746286556464,0.001,96486.0,96485.0,0.7532342]
[1746286559666,0.0335,96486.0,96485.0,0.7532342]
[1746286560369,0.0666,96486.0,96485.0,0.7532342]
[1746286560679,0.2738321,96486.0,96485.0,0.3600342]
[1746286561059,0.0666,96486.0,96485.0,0.3600342]
[1746286561261,0.1846,96486.0,96485.0,0.3600342]
[1746286563867,0.2158,96486.0,96485.0,0.3600342]
[1746286571875,0.4230321,96486.0,96485.0,0.3600342]
[1746286572074,0.2158,96486.0,96485.0,0.3600342]
[1746286574980,0.4230321,96486.0,96485.0,0.3600342]
[1746286575480,0.2158,96486.0,96485.0,0.3600342]
[1746286576580,0.4230321,96486.0,96485.0,0.3600342]
[1746286576771,0.2158,96486.0,96485.0,0.3600342]
[1746286580695,0.4230321,96486.0,96485.0,0.3600342]
[1746286587500,0.2158,96486.0,96485.0,0.3600342]
[1746286588895,0.4230321,96486.0,96485.0,0.3600342]
[1746286595504,0.4230321,96486.0,96485.0,0.4219142]
[1746286597006,0.4230321,96486.0,96485.0,0.3019142]
[1746286597205,0.4230321,96486.0,96485.0,0.3119142]
[1746286601207,0.4230321,96486.0,96485.0,0.2500342]
[1746286601403,0.4230321,96486.0,96485.0,0.3119142]
[1746286612319,0.119,96486.0,96485.0,0.3119142]
[1746286613013,0.119,96486.0,96485.0,0.3425142]
[1746286613213,0.001,96486.0,96485.0,0.3425142]
[1746286617015,0.0342,96486.0,96485.0,0.3425142]
[1746286617218,0.1522,96486.0,96485.0,0.3425142]
[1746286618227,0.3594321,96486.0,96485.0,0.3425142]
[1746286619627,0.1522,96486.0,96485.0,0.3425142]
[1746286620729,0.1522,96486.0,96485.0,0.55323347]
[1746286623836,0.1522,96486.0,96485.0,0.3425142]
[1746286638937,0.1846,96486.0,96485.0,0.3425142]
[1746286646438,0.1846,96486.0,96485.0,0.3435142]
[1746286646845,0.1846,96486.0,96485.0,0.3445142]
[1746286653252,0.1846,96486.0,96485.0,0.3139142]
[1746286657355,0.3918321,96486.0,96485.0,0.07388]
[1746286657652,0.3918321,96486.0,96485.0,0.2811142]
[1746286667062,0.1846,96486.0,96485.0,0.2811142]
[1746286672660,0.1846,96486.0,96485.0,0.4391688]
[1746286673462,0.1846,96486.0,96485.0,0.3772888]
[1746286673765,0.1846,96486.0,96485.0,0.4391288]
[1746286675065,0.3918321,96486.0,96485.0,0.4391288]
[1746286675461,0.1846,96486.0,96485.0,0.4391288]
[1746286678958,0.1846,96486.0,96485.0,0.4291288]
[1746286679167,0.1846,96486.0,96485.0,0.6591288]
[1746286680570,0.1846,96486.0,96485.0,0.5010742]
[1746286683667,0.1846,96486.0,96485.0,0.5323742]
[1746286689571,0.3918321,96486.0,96485.0,0.5323742]
[1746286689871,0.1846,96486.0,96485.0,0.5323742]
[1746286695977,0.1846,96486.0,96485.0,0.32314]
[1746286696677,0.1846,96486.0,96485.0,0.5303742]
[1746286702383,0.1846,96486.0,96485.0,0.4685342]
[1746286702576,0.1846,96486.0,96485.0,0.5303742]
[1746286705582,0.1846,96486.0,96485.0,0.5605742]
[1746286713787,0.1856,96486.0,96485.0,0.5605742]
[1746286713980,0.3928321,96486.0,96485.0,0.5303742]
[1746286714391,0.3918321,96486.0,96485.0,0.5303742]
[1746286714687,0.3928321,96486.0,96485.0,0.5303742]
[1746286715285,0.1856,96486.0,96485.0,0.5303742]
[1746286716190,0.3928321,96486.0,96485.0,0.5303742]
[1746286724091,0.3928321,96486.0,96485.0,0.4685342]
[1746286724287,0.3928321,96486.0,96485.0,0.5303742]
[1746286725180,0.1856,96486.0,96485.0,0.5303742]
[1746286726690,0.3928321,96486.0,96485.0,0.5303742]
[1746286731490,0.1856,96486.0,96485.0,0.5303742]
[1746286736489,0.1846,96486.0,96485.0,0.5303742]
[1746286736689,0.1856,96486.0,96485.0,0.5303742]
[1746286737596,0.1846,96486.0,96485.0,0.5303742]
[1746286737795,0.1856,96486.0,96485.0,0.5303742]
[1746286745103,0.3928321,96486.0,96485.0,0.5303742]
[1746286752517,0.3928321,96486.0,96485.0,0.4685342]
[1746286752812,0.3928321,96486.0,96485.0,0.5303342]
[1746286759428,0.3928321,96486.0,96485.0,0.31870704]
[1746286759726,0.3928321,96486.0,96485.0,0.08017284]
[1746286759928,0.3928321,96486.0,96483.0,0.21071927]
[1746286759929,0.2072364,96484.0,96483.0,0.21071927]
[1746286760118,0.6860364,96484.0,96483.0,0.21071927]
[1746286760629,0.6860364,96484.0,96483.0,0.25071927]
[1746286762023,0.6870364,96484.0,96483.0,0.21071927]
[1746286762220,0.6870364,96484.0,96483.0,0.2072385]
[1746286762731,0.6870364,96484.0,96483.0,0.2472385]
[1746286762930,0.7070364,96484.0,96483.0,0.2072385]
[1746286763130,0.6870364,96484.0,96483.0,0.2072385]
[1746286763834,0.7070364,96484.0,96483.0,0.2072385]
[1746286764131,0.6870364,96484.0,96483.0,0.2072385]
[1746286764930,0.6870364,96484.0,96483.0,0.2472385]
[1746286765632,0.6870364,96484.0,96483.0,0.04]
[1746286767232,0.2072493,96478.0,96477.0,0.25149744]
[1746286767422,0.2072493,96478.0,96477.0,0.23725]
[1746286767833,0.2072493,96478.0,96477.0,0.20725]
[1746286768028,0.6418493,96478.0,96477.0,0.02695203]
[1746286768230,0.2072686,96469.0,96468.0,0.21071927]
[1746286768428,0.5980686,96469.0,96468.0,0.21071927]
[1746286769030,0.6618686,96469.0,96468.0,0.2183164]
[1746286769225,0.7798686,96469.0,96468.0,0.23763158]
[1746286769634,0.7808686,96469.0,96468.0,0.02991231]
[1746286770233,0.7508686,96469.0,96468.0,0.03291231]
[1746286790145,0.8645286,96469.0,96468.0,3e-08]
[1746286791441,1.2836286,96469.0,96468.0,3e-08]
[1746286802555,1.2826286,96469.0,96468.0,0.00100003]
[1746286804055,1.1789686,96469.0,96468.0,0.00100003]
[1746286804459,1.1789686,96469.0,96468.0,0.001]
[1746286804755,1.1789686,96469.0,96468.0,0.002]
[1746286806652,0.2073073,96451.0,96450.0,0.07898266]
[1746286806853,0.2073116,96449.0,96440.0,0.58086368]
[1746286807051,0.2073116,96449.0,96448.0,0.3773133]
[1746286807650,0.2073116,96449.0,96448.0,0.17]
[1746286808347,0.2023116,96449.0,96448.0,0.18949875]
[1746286808555,0.2033116,96449.0,96448.0,0.19349875]
[1746286809053,0.2043116,96449.0,96448.0,0.20630209]
[1746286809361,0.2043116,96449.0,96448.0,0.41361579]
[1746286809862,0.2043116,96449.0,96448.0,0.20630209]
[1746286810359,0.2043116,96449.0,96448.0,0.26960209]
[1746286810758,0.2043116,96449.0,96448.0,0.47691579]
[1746286813456,0.2043116,96449.0,96448.0,0.26960209]
[1746286821472,0.2356116,96449.0,96448.0,0.26960209]
[1746286826672,0.2687116,96449.0,96448.0,0.26960209]
[1746286828962,0.2687116,96449.0,96448.0,0.23710209]
[1746286832373,0.2687116,96449.0,96448.0,0.20630209]
[1746286846197,0.3867116,96449.0,96448.0,0.20630209]
[1746286846398,0.7475116,96449.0,96448.0,0.20630209]
[1746286847099,0.2687116,96449.0,96448.0,0.20630209]
[1746286847398,0.6295116,96449.0,96448.0,0.20630209]
[1746286849701,0.6295116,96449.0,96448.0,0.20330209]
[1746286850201,0.6305116,96449.0,96448.0,0.19830209]
[1746286850396,0.6315116,96449.0,96448.0,0.19930209]
[1746286850897,0.6285116,96449.0,96448.0,0.19830209]
[1746286851103,0.6315116,96449.0,96448.0,0.19830209]
[1746286851601,0.2707116,96449.0,96448.0,0.40561579]
[1746286851801,0.2376116,96449.0,96448.0,0.40561579]
[1746286851994,0.2376116,96449.0,96448.0,0.46871579]
[1746286866720,0.2698116,96449.0,96448.0,0.46871579]
[1746286866913,0.2698116,96449.0,96448.0,0.19830209]
[1746286867216,0.7486116,96449.0,96448.0,0.19830209]
[1746286869006,0.7586116,96449.0,96448.0,0.02830209]
[1746286870022,0.7486116,96449.0,96448.0,0.03830209]
[1746286870312,0.7486116,96449.0,96448.0,0.02830209]
[1746286871016,0.7486116,96449.0,96448.0,0.03830209]
[1746286880925,0.7486116,96449.0,96448.0,0.02830209]
[1746286881125,0.7586116,96449.0,96448.0,0.02830209]
[1746286890830,0.7486116,96449.0,96448.0,0.02830209]
[1746286902441,0.3878116,96449.0,96448.0,0.02830209]
[1746286902643,0.7486116,96449.0,96448.0,0.02830209]
[1746286903640,0.7486116,96449.0,96448.0,0.02049875]
[1746286907347,0.7786116,96449.0,96448.0,0.02049875]
[1746286912344,0.5763,96449.0,96441.0,0.0318]
[1746286912644,0.2073546,96429.0,96428.0,0.21071927]
[1746286912850,0.2173546,96429.0,96428.0,0.21071927]
[1746286913546,0.2393546,96429.0,96428.0,0.26071927]
[1746286913847,0.2393546,96429.0,96428.0,0.31140466]
[1746286914147,0.2728546,96429.0,96428.0,0.34730466]
[1746286914348,0.2738546,96429.0,96428.0,0.34930466]
[1746286915543,0.2738546,96429.0,96428.0,0.35711741]
[1746286915940,0.2738546,96429.0,96428.0,0.14639814]
[1746286916141,0.3918546,96429.0,96428.0,0.14639814]
[1746286918248,0.2738546,96429.0,96428.0,0.14639814]
[1746286920953,0.2738546,96429.0,96428.0,0.09639814]
[1746286922348,0.2738546,96429.0,96428.0,0.11639814]
[1746286922846,0.2728546,96429.0,96428.0,0.11439814]
[1746286923047,0.6406546,96429.0,96428.0,0.11239814]
[1746286926652,0.6406546,96429.0,96428.0,0.09239814]
[1746286927751,0.6406546,96429.0,96428.0,0.11239814]
[1746286936164,0.6406546,96429.0,96428.0,0.09239814]
[1746286936768,0.6406546,96429.0,96428.0,0.05949814]
[1746286937162,0.6406546,96429.0,96428.0,0.08959814]
[1746286938263,0.6406546,96429.0,96428.0,0.10959814]
[1746286938872,0.2073718,96421.0,96420.0,0.19690756]
[1746286939072,0.2073718,96421.0,96420.0,0.18]
[1746286939967,0.2709718,96421.0,96420.0,0.18]
[1746286940272,0.2759718,96421.0,96420.0,0.181]
[1746286941869,0.2759718,96421.0,96420.0,0.22455581]
[1746286943462,0.2759718,96421.0,96420.0,0.23241839]
[1746286943766,0.2759718,96421.0,96420.0,0.23141839]
[1746286972592,0.2759718,96421.0,96420.0,0.43879229]
[1746286972786,0.2433718,96421.0,96420.0,0.43879229]
[1746286973292,0.2433718,96421.0,96420.0,0.55679229]
[1746286973689,0.2433718,96421.0,96420.0,0.61099229]
[1746286981400,0.2433718,96421.0,96420.0,0.42501182]
[1746286981596,0.2433718,96421.0,96420.0,0.65501182]
[1746286983195,0.2433718,96421.0,96420.0,0.53701182]
[1746286984798,0.2433718,96421.0,96420.0,0.51301182]
[1746286988505,0.2433718,96421.0,96420.0,0.87381182]
[1746286991908,0.2433718,96421.0,96420.0,0.84361182]
[1746286992505,0.2433718,96421.0,96420.0,0.48281182]
[1746286992710,0.2433718,96421.0,96420.0,0.84361182]
[1746287007018,0.2433718,96421.0,96420.0,0.90553182]
[1746287014015,0.2433718,96421.0,96420.0,0.69815792]
[1746287015217,0.3613718,96421.0,96420.0,0.69815792]
[1746287019411,0.3613718,96421.0,96420.0,0.90553182]
[1746287022114,0.2433718,96421.0,96420.0,0.90553182]
[1746287024716,0.2433718,96421.0,96420.0,0.69815792]
[1746287025318,0.2433718,96421.0,96420.0,0.90553182]
[1746287036342,0.2433718,96421.0,96420.0,0.84361182]
[1746287046749,0.036,96421.0,96420.0,0.84361182]
[1746287047658,0.2746718,96421.0,96420.0,0.84361182]
[1746287047842,0.2746718,96421.0,96420.0,0.87521182]
[1746287048759,0.0673,96421.0,96420.0,0.87521182]
[1746287050352,0.2746718,96421.0,96420.0,0.87521182]
[1746287050552,0.0673,96421.0,96420.0,0.87521182]
[1746287050760,0.0673,96421.0,96420.0,0.89921182]
[1746287051052,0.2746718,96421.0,96420.0,0.89921182]
[1746287051255,0.0673,96421.0,96420.0,0.89921182]
[1746287052658,0.2746718,96421.0,96420.0,0.89921182]
[1746287055059,0.2746718,96421.0,96420.0,0.87521182]
[1746287064954,0.2746718,96421.0,96420.0,0.84361182]
[1746287074275,0.2746718,96421.0,96420.0,0.90565182]
[1746287079577,0.2746718,96421.0,96420.0,0.54485182]
[1746287091988,0.2746718,96421.0,96420.0,0.57645182]
[1746287092192,0.2746718,96421.0,96420.0,0.69445182]
[1746287093390,0.2746718,96421.0,96420.0,0.57645182]
[1746287095689,0.2746718,96421.0,96420.0,0.43017269]
[1746287096189,0.2746718,96421.0,96420.0,0.6810139]
[1746287096884,0.2746718,96421.0,96420.0,0.73164017]
[1746287099484,0.2746718,96421.0,96420.0,0.73939584]
[1746287102987,0.2746718,96421.0,96420.0,0.70779584]
[1746287107288,0.2746718,96421.0,96420.0,0.73889584]
[1746287107694,0.2746718,96421.0,96420.0,0.70779584]
[1746287121102,0.2746718,96421.0,96420.0,0.91899372]
[1746287122006,0.2746718,96421.0,96420.0,0.71161982]
[1746287122694,0.2746718,96421.0,96420.0,0.91899372]
[1746287124704,0.0673,96421.0,96420.0,0.91899372]
[1746287125098,0.2746718,96421.0,96420.0,0.91899372]
[1746287132314,0.2746718,96421.0,96420.0,0.70779584]
[1746287132713,0.2746718,96421.0,96420.0,0.64575584]
[1746287132914,0.2746718,96421.0,96420.0,0.70763584]
[1746287165436,0.2746718,96421.0,96420.0,0.55638524]
[1746287182951,0.2746718,96421.0,96420.0,0.76758312]
[1746287187547,0.2746718,96421.0,96420.0,0.55638524]
[1746287196858,0.2746718,96421.0,96420.0,0.49450524]
[1746287231088,0.2746718,96421.0,96420.0,0.28713134]
[1746287232283,0.6354718,96421.0,96420.0,0.00775567]
[1746287232582,0.2073739,96420.0,96419.0,0.21119788]
[1746287232767,0.3310859,96420.0,96419.0,0.16129788]
[1746287233081,0.5129859,96420.0,96419.0,0.16129788]
[1746287233281,0.5129859,96420.0,96419.0,0.06149788]
[1746287234167,0.5149859,96420.0,96419.0,0.06149788]
[1746287234372,0.5179859,96420.0,96419.0,0.06149788]
[1746287235181,0.0518444,96419.0,96415.0,0.2073845]
[1746287235380,0.2073825,96416.0,96415.0,0.2073845]
[1746287236171,0.3253825,96416.0,96415.0,0.2073845]
[1746287236373,0.3881825,96416.0,96415.0,0.21531979]
[1746287236674,0.4928985,96416.0,96415.0,0.26709168]
[1746287236981,0.4928985,96416.0,96415.0,0.00793529]
[1746287237181,0.207389,96413.0,96412.0,0.2073894]
[1746287237479,0.207389,96413.0,96412.0,0.27824717]
[1746287237668,0.207389,96413.0,96412.0,0.07085777]
[1746287238073,0.270189,96413.0,96412.0,0.07085777]
[1746287238279,0.388189,96413.0,96412.0,0.07085777]
[1746287239478,0.390189,96413.0,96412.0,0.07085777]
[1746287239878,0.390189,96413.0,96412.0,0.07880766]
[1746287241176,0.272189,96413.0,96412.0,0.07880766]
[1746287241484,0.239589,96413.0,96412.0,0.28619876]
[1746287242073,0.239589,96413.0,96412.0,0.31849876]
[1746287242682,0.239589,96413.0,96412.0,0.35039876]
[1746287242884,0.239589,96413.0,96412.0,0.14300766]
[1746287245887,0.2592436,96412.0,96411.0,0.207393]
[1746287246186,0.2592436,96412.0,96411.0,0.268]
[1746287246384,0.2918436,96412.0,96411.0,0.268]
[1746287246587,0.2918436,96412.0,96411.0,0.27586184]
[1746287247078,0.2928436,96412.0,96411.0,0.15786184]
[1746287247681,0.2938436,96412.0,96411.0,0.20279673]
[1746287249183,0.2938436,96412.0,96411.0,0.23299673]
[1746287251590,0.2938436,96412.0,96411.0,0.44039003]
[1746287253697,0.2419954,96412.0,96411.0,0.44039003]
[1746287264097,0.2419954,96412.0,96411.0,0.55839003]
[1746287264286,0.2439954,96412.0,96411.0,0.55839003]
[1746287264694,0.2459954,96412.0,96411.0,0.55739003]
[1746287265200,0.2429954,96412.0,96411.0,0.43939003]
[1746287265401,0.2459954,96412.0,96411.0,0.43939003]
[1746287265902,0.2429954,96412.0,96411.0,0.43939003]
[1746287266103,0.2459954,96412.0,96411.0,0.43939003]
[1746287269209,0.2459954,96412.0,96411.0,0.55739003]
[1746287270108,0.2459954,96412.0,96411.0,0.43939003]
[1746287273102,0.2429954,96412.0,96411.0,0.43939003]
[1746287273305,0.2459954,96412.0,96411.0,0.43939003]
[1746287274301,0.2429954,96412.0,96411.0,0.43939003]
[1746287274502,0.2459954,96412.0,96411.0,0.43939003]
[1746287274801,0.2459954,96412.0,96411.0,0.40919003]
[1746287289121,0.2459954,96412.0,96411.0,0.20179673]
[1746287289319,0.2459954,96412.0,96411.0,0.40919003]
[1746287292024,0.2429954,96412.0,96411.0,0.40919003]
[1746287292321,0.2459954,96412.0,96411.0,0.40919003]
[1746287300627,0.2459954,96412.0,96411.0,0.20179673]
[1746287301319,0.6067954,96412.0,96411.0,0.05179673]
[1746287301520,0.2074084,96404.0,96400.0,0.3074157]
[1746287301820,0.2074084,96404.0,96403.0,0.3018]
[1746287302026,0.2074084,96404.0,96403.0,0.12405208]
[1746287302325,0.2074084,96404.0,96403.0,0.06225208]
[1746287302520,0.2692084,96404.0,96403.0,0.06225208]
[1746287302720,0.2712084,96404.0,96403.0,0.06225208]
[1746287302920,0.2732084,96404.0,96403.0,0.06225208]
[1746287305430,0.2732084,96404.0,96403.0,0.05225208]
[1746287305729,0.2074148,96401.0,96400.0,0.1]
[1746287305930,0.2074148,96401.0,96400.0,0.11]
[1746287306532,0.2678148,96401.0,96400.0,0.11]
[1746287307331,0.2688148,96401.0,96400.0,0.16128297]
[1746287308235,0.2698148,96401.0,96400.0,0.16128297]
[1746287310233,0.2698148,96401.0,96400.0,0.16913797]
[1746287318127,0.2698148,96401.0,96400.0,0.15913797]
[1746287318328,0.2698148,96401.0,96400.0,0.16913797]
[1746287323341,0.2698148,96401.0,96400.0,0.15913797]
[1746287329652,0.2698148,96401.0,96400.0,0.16913797]
[1746287344144,0.2698148,96401.0,96400.0,0.28713797]
[1746287345255,0.2698148,96401.0,96400.0,0.16913797]
[1746287360856,0.2698148,96401.0,96400.0,0.37655497]
[1746287361363,0.2698148,96401.0,96400.0,0.28713797]
[1746287371174,0.2738148,96401.0,96400.0,0.28713797]
[1746287372164,0.2768148,96401.0,96400.0,0.28713797]
[1746287372566,0.2718148,96401.0,96400.0,0.28713797]
[1746287372864,0.2768148,96401.0,96400.0,0.28713797]
[1746287383279,0.2768148,96401.0,96400.0,0.12764575]
[1746287383881,0.2768148,96401.0,96400.0,0.13551894]
[1746287384082,0.2768148,96401.0,96400.0,0.01751894]
[1746287385382,0.2778148,96401.0,96400.0,0.01751894]
[1746287385582,0.2778148,96401.0,96400.0,0.06129524]
[1746287386175,0.2788148,96401.0,96400.0,0.06129524]
[1746287390184,0.2788148,96401.0,96400.0,0.05164949]
[1746287390386,0.2074234,96397.0,96396.0,0.0303]
[1746287390684,0.2074234,96397.0,96396.0,0.2103]
[1746287391185,0.2074234,96397.0,96396.0,0.3283]
[1746287391375,0.2690234,96397.0,96396.0,0.3283]
[1746287392184,0.2690234,96397.0,96396.0,0.37260337]
[1746287392375,0.2740234,96397.0,96396.0,0.37260337]
[1746287392984,0.2780234,96397.0,96396.0,0.37260337]
[1746287393887,0.2780234,96397.0,96396.0,0.38039567]
[1746287400485,0.2780234,96397.0,96396.0,0.58782127]
[1746287401490,0.2780234,96397.0,96396.0,0.22217765]
[1746287402084,0.2780234,96397.0,96396.0,0.37009567]
[1746287406491,0.2780234,96397.0,96396.0,0.57752127]
[1746287420802,0.2780234,96397.0,96396.0,0.37009567]
[1746287422701,0.2780234,96397.0,96396.0,0.57752127]
[1746287424495,0.2780234,96397.0,96396.0,0.37009567]
[1746287435297,0.2780234,96397.0,96396.0,0.25209567]
[1746287436110,0.2780234,96397.0,96396.0,0.37009567]